bitfinex/quotes_ETHUSD_20250909
["timestamp","ask_amount","ask_price","bid_price","bid_amount"]
[1757428588908,0.0002,4287.9,4287.3,2.33242492]
[1757428589209,0.0002,4287.9,4287.1,6.22017461]
[1757428589414,0.0002,4287.9,4287.1,3.8876]
[1757428589709,0.0002,4287.9,4287.5,5.3323559]
[1757428589909,0.0002,4287.9,4287.1,3.8876]
[1757428590114,0.0002,4287.9,4287.8,2.33219833]
[1757428590274,0.0002,4287.9,4287.8,6.85019833]
[1757428590473,0.0002,4287.9,4287.8,5.4036]
[1757428590673,0.0002,4287.9,4287.8,4.516]
[1757428590985,0.0002,4287.9,4287.8,7.73579833]
[1757428591867,0.0002,4287.9,4287.8,6.84719833]
[1757428592122,0.0002,4287.9,4287.8,4.51]
[1757428592321,0.0002,4287.9,4287.3,0.116]
[1757428592527,0.116,4287.3,4287.0,6.299]
[1757428592730,0.116,4287.3,4287.0,1.79]
[1757428592874,0.792,4287.7,4287.0,1.79]
[1757428593069,0.116,4287.2,4287.0,1.79]
[1757428593274,0.0002,4287.9,4287.3,2.33242275]
[1757428593577,2.33234728,4287.6,4286.4,0.8746]
[1757428593815,0.116,4287.0,4286.5,30.0]
[1757428593980,0.792,4287.7,4286.5,4.503]
[1757428594180,0.116,4286.7,4286.6,2.3328406]
[1757428594592,0.116,4286.7,4286.6,3.2074406]
[1757428594803,0.116,4287.1,4287.0,2.33262475]
[1757428595239,0.0002,4287.9,4287.0,11.3309]
[1757428595383,0.116,4287.8,4287.3,2.33246429]
[1757428595721,0.116,4287.8,4287.6,2.33230363]
[1757428595918,0.116,4287.8,4287.7,2.33225272]
[1757428596216,0.116,4287.8,4287.4,4.499]
[1757428596217,0.116,4287.8,4287.4,6.83141027]
[1757428596383,0.116,4287.8,4287.5,2.33234666]
[1757428596578,0.116,4287.8,4287.6,2.33229739]
[1757428596799,0.116,4287.8,4287.1,1.79]
[1757428596996,0.0002,4287.9,4287.2,4.497]
[1757428597180,0.116,4287.6,4287.2,4.497]
[1757428597381,0.0002,4287.9,4287.6,30.0]
[1757428597681,0.1162,4287.9,4287.8,2.33219833]
[1757428598014,0.0002,4287.9,4287.8,2.33219833]
[1757428598192,0.0002,4287.9,4287.8,32.44819833]
[1757428598394,0.0002,4287.9,4287.8,38.09309833]
[1757428598631,0.0002,4287.9,4287.8,42.58709833]
[1757428598905,0.0002,4287.9,4287.2,2.03037923]
[1757428599216,0.0002,4287.9,4287.3,3.0233247]
[1757428599418,0.0002,4287.9,4287.2,30.4563]
[1757428599419,0.792,4287.8,4287.1,1.79]
[1757428599718,1.00356343,4287.8,4287.1,1.79]
[1757428599921,0.792,4287.5,4287.1,6.289]
[1757428600220,2.33225501,4287.7,4287.1,6.289]
[1757428600421,0.0002,4287.9,4287.1,6.289]
[1757428600621,0.792,4287.5,4286.4,1.789]
[1757428600810,3.12448828,4287.3,4286.5,6.82690459]
[1757428601118,0.792,4287.2,4286.4,6.282]
[1757428601424,0.792,4286.9,4286.4,6.282]
[1757428601580,0.792,4287.4,4286.5,0.8746]
[1757428601784,0.792,4286.9,4286.4,1.789]
[1757428601983,0.792,4286.8,4286.4,1.789]
[1757428602452,0.792,4286.7,4286.4,1.789]
[1757428602858,0.792,4287.1,4286.4,1.789]
[1757428603053,1.00369854,4287.1,4286.4,1.789]
[1757428603229,2.2212,4287.9,4286.4,4.789]
[1757428603230,0.792,4287.8,4286.4,4.789]
[1757428603430,2.33254253,4287.2,4286.5,3.0]
[1757428603665,0.792,4287.4,4286.5,3.0]
[1757428603846,3.12442033,4287.4,4286.5,3.0]
[1757428604022,0.792,4287.2,4286.1,0.042]
[1757428604221,0.8068,4287.5,4286.1,0.042]
[1757428604222,0.792,4286.2,4286.1,0.042]
[1757428604420,3.12506891,4286.2,4286.1,0.042]
[1757428604616,0.792,4286.3,4286.1,0.042]
[1757428604818,3.57364885,4286.2,4286.1,0.042]
[1757428605019,1.00375469,4286.2,4286.1,0.042]
[1757428605257,1.79,4286.9,4286.1,0.042]
[1757428605258,0.792,4286.7,4286.1,0.042]
[1757428605473,0.792,4286.5,4286.1,0.042]
[1757428605762,2.33273054,4286.9,4286.1,0.042]
[1757428605920,2.3324232,4287.4,4286.2,0.8746]
[1757428606119,2.3324232,4287.4,4286.1,1.832]
[1757428606120,2.33253035,4287.2,4286.1,1.832]
[1757428606337,0.64359081,4287.5,4286.1,1.832]
[1757428606551,0.792,4287.4,4286.2,4.496]
[1757428606857,3.1245893,4287.1,4286.2,4.496]
[1757428607056,0.792,4287.1,4286.1,4.16511589]
[1757428607360,0.792,4287.0,4286.2,2.33305613]
[1757428607558,0.792,4287.0,4286.1,1.832]
[1757428607722,0.792,4286.8,4286.1,1.832]
[1757428607918,0.792,4286.6,4286.1,0.042]
[1757428608137,0.22817075,4286.5,4286.1,0.042]
[1757428608333,3.12506891,4286.2,4286.1,0.042]
[1757428608544,4.57545972,4286.2,4286.1,0.042]
[1757428609050,2.24239081,4286.2,4286.1,0.042]
[1757428609248,4.36386891,4286.2,4286.1,0.042]
[1757428609448,3.55706891,4286.2,4286.1,0.042]
[1757428609726,4.57520182,4286.2,4286.1,0.042]
[1757428609928,6.36520182,4286.2,4286.1,0.042]
[1757428610134,0.792,4285.9,4285.8,0.025]
[1757428610335,3.33656513,4285.9,4285.8,0.025]
[1757428610571,4.59194507,4285.9,4285.8,1e-08]
[1757428611275,0.792,4285.8,4285.0,7.74323815]
[1757428611494,3.12577675,4284.9,4284.8,1e-08]
[1757428611672,9.40877675,4284.9,4284.8,1e-08]
[1757428611982,10.85690966,4284.9,4284.8,1e-08]
[1757428612135,6.36590966,4284.9,4284.8,1e-08]
[1757428612337,2.582,4284.9,4284.8,1e-08]
[1757428612578,7.073,4284.9,4284.8,1e-08]
[1757428613297,1.79,4284.9,4284.8,1e-08]
[1757428613741,2.582,4284.9,4284.8,1e-08]
[1757428614260,1.79,4285.6,4285.2,0.002]
[1757428616943,0.04,4286.9,4286.7,2.33279415]
[1757428617151,0.04,4286.9,4286.5,0.02332905]
[1757428617354,0.04,4286.9,4286.8,2.33274237]
[1757428617584,0.04,4286.9,4286.8,3.20734237]
[1757428617818,0.04,4286.9,4286.8,0.8746]
[1757428618021,0.04,4286.9,4285.4,3.1209]
[1757428618022,0.472,4286.9,4285.4,3.1209]
[1757428618218,0.792,4286.8,4285.4,2.6646]
[1757428618429,0.792,4286.2,4285.4,7.1366]
[1757428618801,0.792,4286.2,4285.0,3.0]
[1757428618802,0.792,4286.3,4284.9,0.4563]
[1757428619037,0.792,4286.3,4284.8,4.47200001]
[1757428619038,0.792,4285.6,4284.8,4.47200001]
[1757428619240,0.792,4285.8,4284.8,1e-08]
[1757428619384,3.12508208,4286.2,4285.0,2.33371821]
[1757428619593,0.792,4285.4,4284.8,1e-08]
[1757428619888,3.12555891,4285.3,4284.8,1e-08]
[1757428620125,0.792,4285.3,4284.8,1e-08]
[1757428620624,0.792,4285.3,4285.2,0.3079]
[1757428620938,0.04,4286.9,4285.3,30.0]
[1757428621081,2.33295659,4286.5,4285.2,0.8766]
[1757428621307,0.792,4286.5,4285.2,0.8766]
[1757428621547,1.79,4286.7,4285.3,2.33355891]
[1757428621762,0.04,4286.9,4286.6,0.3065]
[1757428622412,0.04,4286.9,4286.0,4.9318]
[1757428622413,0.04,4286.9,4286.0,4.9308]
[1757428622603,0.04,4286.9,4286.1,0.02333123]
[1757428623004,0.05,4286.8,4286.0,8.31705968]
[1757428623252,0.05,4286.8,4286.5,2.33285349]
[1757428623412,0.05,4286.8,4285.9,2.6001]
[1757428623612,0.792,4286.6,4286.2,2.33301512]
[1757428623826,0.05,4286.8,4286.0,3.0]
[1757428624007,0.792,4286.7,4286.5,0.3065]
[1757428624516,0.792,4286.7,4286.0,4.00591]
[1757428624517,0.792,4286.7,4286.0,3.0]
[1757428624717,0.792,4286.7,4286.3,2.33301354]
[1757428624913,0.792,4286.7,4285.7,0.8101]
[1757428625215,0.792,4286.7,4285.2,4.458]
[1757428625216,0.792,4286.5,4285.2,0.002]
[1757428625437,0.792,4285.3,4285.2,0.002]
[1757428627148,0.792,4285.9,4285.2,0.002]
[1757428627325,0.792,4285.9,4285.3,2.33354525]
[1757428627651,1.79,4286.7,4285.5,2.33340363]
[1757428627848,1.79,4286.7,4285.2,0.4698]
[1757428628012,0.05,4286.8,4285.6,0.02333395]
[1757428628211,0.05,4286.8,4285.6,0.4678]
[1757428628414,0.05,4286.8,4285.5,4.446]
[1757428628640,0.792,4286.4,4285.6,2.33335046]
[1757428629160,0.116,4286.1,4285.4,0.116]
[1757428629362,0.792,4285.7,4285.2,0.002]
[1757428629535,0.4392,4286.1,4285.2,0.002]
[1757428629536,0.116,4285.3,4285.2,0.002]
[1757428629742,0.1152,4285.3,4285.2,0.002]
[1757428630260,0.1152,4285.3,4285.2,3.14571336]
[1757428630447,0.116,4285.7,4285.3,2.33355599]
[1757428630656,0.116,4286.0,4285.4,30.0]
[1757428630958,0.05,4286.8,4285.5,0.0233345]
[1757428631128,0.05,4286.8,4286.3,2.33296958]
[1757428631323,0.116,4286.6,4285.9,2.44922083]
[1757428631662,0.116,4286.6,4286.4,2.33293254]
[1757428631962,0.116,4286.6,4286.3,2.33299708]
[1757428632140,0.116,4286.6,4286.1,0.8101]
[1757428632343,0.116,4286.6,4286.5,2.33290563]
[1757428633246,0.116,4286.6,4286.5,0.3065]
[1757428633450,0.05,4286.8,4286.7,2.33279679]
[1757428633751,0.05,4286.8,4286.2,2.44901914]
[1757428634070,2.33285121,4286.6,4285.3,0.8101]
[1757428634271,0.792,4286.2,4285.6,3.0]
[1757428634475,0.792,4286.7,4285.5,4.434]
[1757428634633,0.792,4286.5,4285.5,2.3334121]
[1757428634967,0.792,4286.5,4285.6,4.431]
[1757428635155,1.2312,4286.4,4285.2,0.002]
[1757428635353,0.792,4286.1,4285.2,0.002]
[1757428635559,0.792,4285.4,4285.2,0.002]
[1757428635870,2.33335022,4285.7,4285.2,0.002]
[1757428636187,4.42525891,4285.3,4285.2,0.002]
[1757428637054,2.0917,4285.3,4285.2,0.002]
[1757428637755,4.42525891,4285.3,4285.2,0.002]
[1757428638313,1.2312,4285.3,4285.2,0.002]
[1757428638488,0.792,4285.3,4285.2,0.002]
[1757428639195,0.792,4285.7,4285.2,0.002]
[1757428639953,0.792,4285.7,4285.2,2.33560163]
[1757428640159,1.79,4286.5,4285.2,0.53556016]
[1757428640468,0.05,4286.8,4286.0,2.33316512]
[1757428640469,2.38274923,4286.8,4286.0,2.33316512]
[1757428640681,2.38274923,4286.8,4285.3,0.83343558]
[1757428640682,0.05,4286.8,4286.1,2.33311641]
[1757428640995,0.05,4286.8,4285.8,0.8101]
[1757428641296,0.05,4286.8,4285.7,3.0]
[1757428641482,0.05,4286.8,4285.8,41.2779]
[1757428641682,0.05,4286.8,4286.5,2.33290461]
[1757428641994,0.05,4286.8,4285.9,3.0]
[1757428642197,2.33279679,4286.7,4285.8,5.33324357]
[1757428642500,0.05,4286.8,4286.2,2.33306505]
[1757428642655,0.792,4286.7,4285.8,3.0]
[1757428642855,0.792,4286.7,4285.8,4.54547061]
[1757428643063,0.792,4286.7,4286.3,2.33300538]
[1757428643264,0.792,4286.7,4286.5,2.3328739]
[1757428643603,0.792,4286.7,4285.9,0.02333232]
[1757428643835,0.05,4286.8,4286.7,2.33279679]
[1757428644706,0.05,4286.8,4286.2,0.116]
[1757428644893,0.05,4286.8,4286.3,2.33301448]
[1757428645230,1.2312,4286.7,4285.8,4.54547061]
[1757428645428,1.2312,4286.7,4285.6,6.193]
[1757428645429,0.792,4286.7,4285.6,6.193]
[1757428645631,0.116,4286.1,4285.7,3.0]
[1757428645833,0.116,4286.1,4285.9,2.33322645]
[1757428646737,0.908,4286.1,4286.0,2.33317778]
[1757428647031,0.116,4286.1,4286.0,2.33317778]
[1757428647335,0.116,4286.1,4285.6,6.187]
[1757428647506,2.33302906,4286.3,4285.6,1.79]
[1757428647507,3.12518765,4286.0,4285.6,1.79]
[1757428647715,0.116,4285.8,4285.6,1.79]
[1757428647913,0.116,4285.8,4285.2,0.002]
[1757428648112,0.116,4285.8,4285.2,5.33558779]
[1757428648310,3.12534541,4285.7,4285.2,0.002]
[1757428648511,0.792,4285.3,4285.2,0.002]
[1757428649213,0.116,4285.5,4285.3,2.33354806]
[1757428649413,0.116,4285.5,4285.2,0.002]
[1757428650237,3.12523222,4285.9,4285.2,0.002]
[1757428650434,0.792,4285.7,4285.2,0.002]
[1757428650636,0.116,4285.4,4285.3,2.33355891]
[1757428650809,0.116,4285.4,4285.3,2.64005891]
[1757428651213,0.116,4285.4,4285.2,0.002]
[1757428652012,0.116,4285.4,4285.2,4.382]
[1757428652217,0.116,4285.4,4285.2,6.71560424]
[1757428652566,0.116,4285.4,4285.3,2.33355891]
[1757428653043,0.116,4285.4,4285.3,2.62105891]
[1757428653244,0.116,4285.4,4285.3,3.44705891]
[1757428653443,0.116,4285.7,4285.3,1.5683]
[1757428653629,0.116,4286.0,4285.4,0.826]
[1757428653844,0.792,4285.9,4285.3,0.72263]
[1757428654043,0.116,4286.0,4285.2,0.002]
[1757428654044,0.792,4285.5,4285.2,4.371]
[1757428654654,0.792,4285.5,4285.2,0.002]
[1757428655151,0.792,4285.9,4285.2,0.002]
[1757428655349,0.792,4285.7,4285.2,0.002]
[1757428655551,0.8783,4286.1,4285.2,0.002]
[1757428655552,0.792,4285.8,4285.2,0.002]
[1757428655930,0.792,4285.8,4285.2,2.33560638]
[1757428656128,0.7912,4285.8,4285.2,2.33560638]
[1757428656329,1.33,4286.1,4285.2,0.002]
[1757428656653,0.116,4285.4,4285.2,4.366]
[1757428656951,0.116,4285.4,4285.2,0.002]
[1757428656952,0.5677,4285.4,4285.2,0.002]
[1757428657314,3.96125891,4285.3,4285.2,0.002]
[1757428658229,2.4197,4285.3,4285.2,0.002]
[1757428658429,0.792,4285.3,4285.2,0.002]
[1757428658755,1.79,4286.2,4285.2,0.2895]
[1757428658969,0.116,4285.7,4285.2,1.1155]
[1757428659354,0.116,4286.0,4285.9,2.33318686]
[1757428659851,0.116,4286.0,4285.4,3.0]
[1757428660052,0.116,4286.0,4285.4,7.357]
[1757428660251,0.116,4286.0,4285.9,2.33323222]
[1757428660656,0.116,4286.0,4285.9,2.64406454]
[1757428660847,0.116,4286.3,4286.2,2.33306891]
[1757428661349,0.116,4286.3,4285.9,4.353]
[1757428661549,0.792,4286.5,4285.6,4.35]
[1757428661749,1.00057,4286.5,4285.6,4.35]
[1757428661986,1.00057,4286.5,4285.7,2.33334111]
[1757428662140,1.00057,4286.5,4285.6,4.35]
[1757428662340,1.00057,4286.5,4285.9,2.3332286]
[1757428662681,0.792,4286.4,4285.9,2.3332286]
[1757428663059,0.05,4286.8,4286.1,2.33311185]
[1757428663259,0.2977,4286.2,4285.8,4.35]
[1757428663467,0.792,4286.6,4285.9,2.33319174]
[1757428663646,0.792,4286.6,4285.5,1.79]
[1757428663647,0.792,4286.6,4285.7,2.33333511]
[1757428663844,3.12485137,4286.6,4285.8,2.33327227]
[1757428664379,0.792,4286.6,4285.7,6.68732665]
[1757428664579,3.60356882,4286.6,4285.7,6.6873281]
[1757428664784,1.27070768,4286.6,4285.7,6.68232962]
[1757428664974,1.27070768,4286.6,4285.8,2.33328666]
[1757428665168,0.792,4286.6,4286.1,2.33307992]
[1757428665369,0.792,4286.6,4286.2,2.33306716]
[1757428665672,0.792,4286.7,4286.2,2.3330151]
[1757428666083,2.33285251,4286.6,4285.7,4.349]
[1757428666379,0.792,4286.7,4285.7,4.349]
[1757428666586,1.11347282,4286.7,4286.0,2.33316513]
[1757428666750,1.11347282,4286.7,4286.1,2.33310927]
[1757428667086,1.11347282,4286.7,4285.8,0.02333286]
[1757428667087,0.792,4286.7,4286.3,2.3330007]
[1757428667302,0.792,4286.7,4286.4,2.3329162]
[1757428667663,0.792,4286.7,4286.5,2.33288302]
[1757428667853,0.792,4286.7,4286.4,2.33296005]
[1757428668053,0.792,4286.7,4286.3,2.33297584]
[1757428668253,0.792,4286.7,4285.7,4.349]
[1757428668254,0.792,4286.7,4286.4,2.33294972]
[1757428668448,0.792,4286.7,4285.6,3.826]
[1757428668663,0.792,4286.7,4286.1,0.826]
[1757428668990,0.05,4286.8,4286.7,2.33279679]
[1757428669360,0.05,4286.8,4286.7,41.25842475]
[1757428669686,0.05,4286.8,4286.7,41.23509679]
[1757428669884,0.05,4286.8,4286.7,11.23509679]
[1757428670048,0.05,4286.8,4286.7,7.15609503]
[1757428670244,0.05,4286.8,4286.7,7.98209503]
[1757428670674,0.05,4286.8,4286.7,3.0]
[1757428670845,0.842,4286.8,4286.7,6.66279679]
[1757428671058,0.842,4286.8,4286.6,2.33284278]
[1757428671266,0.842,4286.8,4286.7,2.33279679]
[1757428671472,0.842,4286.8,4286.7,2.62029679]
[1757428671657,0.842,4286.8,4286.7,2.33279679]
[1757428671858,0.116,4286.7,4286.6,4.326]
[1757428672091,0.116,4286.7,4286.6,6.65885121]
[1757428672595,0.116,4286.7,4286.6,6.94635121]
[1757428674264,0.05,4286.8,4286.7,2.33279679]
[1757428674585,0.05,4286.8,4286.7,3.61359679]
[1757428674789,0.05,4286.8,4286.7,2.33279679]
[1757428674990,0.05,4286.8,4286.5,2.33290424]
[1757428675174,0.05,4286.8,4286.4,1.906]
[1757428675175,0.05,4286.8,4286.7,4.318]
[1757428675380,0.05,4286.8,4286.7,6.65079679]
[1757428675578,0.05,4286.8,4286.7,6.93829679]
[1757428675890,0.05,4286.8,4286.5,3.15887136]
[1757428675891,0.05,4286.8,4286.5,0.826]
[1757428676056,0.05,4286.8,4286.6,4.312]
[1757428676057,0.166,4286.8,4286.6,4.312]
[1757428676251,0.166,4286.8,4286.6,6.64480457]
[1757428676458,0.166,4286.8,4286.6,4.312]
[1757428676688,0.166,4286.8,4286.7,2.33279679]
[1757428676865,0.166,4286.8,4286.7,4.31]
[1757428677067,0.166,4286.8,4286.1,0.116]
[1757428677068,0.792,4286.7,4286.1,0.116]
[1757428677389,0.792,4286.5,4286.2,2.733]
[1757428677636,1.0897,4286.3,4286.2,2.733]
[1757428677893,1.0897,4286.3,4285.7,1.79]
[1757428677894,0.908,4286.2,4285.7,1.79]
[1757428678095,0.792,4286.2,4285.8,4.306]
[1757428678396,1.2437,4286.2,4285.8,6.63926692]
[1757428678693,1.2437,4286.2,4285.7,1.79]
[1757428678694,0.792,4286.0,4285.7,1.79]
[1757428678913,0.908,4285.8,4285.7,1.79]
[1757428679075,0.908,4285.8,4285.7,8.42734111]
[1757428679269,0.908,4285.8,4285.7,6.094]
[1757428679772,0.908,4285.8,4285.7,8.42734111]
[1757428680507,0.116,4285.8,4285.7,8.71484111]
[1757428680711,0.116,4285.8,4285.7,9.99564111]
[1757428680874,0.116,4285.8,4285.7,9.54084111]
[1757428681071,0.116,4285.8,4285.7,6.52755412]
[1757428681311,0.116,4285.8,4285.7,1.79]
[1757428681519,0.116,4285.8,4285.4,0.0060926]
[1757428681520,0.792,4285.7,4285.4,0.0060926]
[1757428681721,1.2238,4285.7,4285.5,4.295]
[1757428682008,0.792,4286.2,4285.5,4.295]
[1757428682211,0.7912,4286.2,4285.6,2.33339555]
[1757428682387,0.9958,4286.2,4285.5,4.293]
[1757428682788,3.32888111,4286.2,4285.5,4.293]
[1757428682988,0.116,4285.5,4285.4,0.0060926]
[1757428683210,0.116,4285.5,4285.4,6.63156114]
[1757428683608,0.04,4286.9,4285.5,2.33345]
[1757428683911,0.4718,4286.9,4285.7,3.0]
[1757428684116,0.4718,4286.9,4285.6,0.83967821]
[1757428684117,0.04,4286.9,4286.6,2.33280576]
[1757428684317,0.04,4286.9,4286.7,2.33279679]
[1757428684476,0.04,4286.9,4286.5,4.289]
[1757428684675,0.2956,4286.6,4285.8,1.79]
[1757428684916,0.2956,4286.6,4286.0,3.0]
[1757428684917,0.792,4286.5,4286.0,3.0]
[1757428685214,0.792,4286.7,4286.0,3.0]
[1757428685418,0.792,4286.7,4286.2,2.33306037]
[1757428685644,0.792,4286.7,4286.3,4.287]
[1757428685915,0.792,4286.7,4285.8,1.79]
[1757428685916,0.792,4286.3,4285.8,1.79]
[1757428686113,0.792,4286.3,4285.9,6.61918944]
[1757428686413,0.792,4286.5,4286.3,2.33301016]
[1757428686618,0.792,4286.7,4286.3,4.285]
[1757428686923,0.792,4286.7,4286.4,2.33292145]
[1757428687095,0.792,4286.7,4286.5,2.33286065]
[1757428687281,0.792,4286.7,4286.4,3.0]
[1757428687482,0.792,4286.7,4286.5,2.33290563]
[1757428687677,0.792,4286.7,4286.6,2.33285121]
[1757428687925,0.792,4286.7,4286.4,3.0]
[1757428688296,0.001,4286.7,4286.4,3.0]
[1757428688622,0.001,4286.7,4286.6,2.33285121]
[1757428688826,0.001,4286.7,4286.6,6.61285121]
[1757428689047,0.001,4286.7,4286.6,6.90295121]
[1757428689348,0.001,4286.7,4286.6,8.53663438]
[1757428689502,0.001,4286.7,4286.6,10.32663438]
[1757428689941,0.001,4286.7,4286.6,13.76033438]
[1757428690443,0.001,4286.7,4286.6,43.76033438]
[1757428691709,0.04,4286.9,4286.6,41.42748317]
[1757428692026,0.001,4287.5,4287.4,2.33241591]
[1757428692225,0.001,4287.5,4287.4,41.50735545]
[1757428692424,0.001,4287.5,4287.4,43.03925545]
[1757428693346,0.001,4287.5,4287.4,43.03725545]
[1757428693509,0.001,4287.5,4287.4,43.15325545]
[1757428693709,0.001,4287.5,4287.4,45.42116342]
[1757428695047,0.001,4287.5,4287.4,14.06142388]
[1757428695255,1.0886,4287.5,4287.4,1.79]
[1757428695419,1.0886,4287.5,4287.4,6.054]
[1757428695420,1.5204,4287.5,4287.4,6.054]
[1757428695618,0.793,4287.5,4287.4,11.38641591]
[1757428695918,0.001,4287.5,4287.4,8.67651591]
[1757428696124,0.001,4287.5,4287.4,12.7774185]
[1757428696736,0.001,4287.5,4287.4,14.0192185]
[1757428696995,0.001,4288.0,4287.9,2.33214393]
[1757428697289,0.001,4288.0,4287.9,39.90553782]
[1757428697470,0.001,4288.0,4287.9,41.41411639]
[1757428697678,0.001,4288.0,4287.9,43.68202436]
[1757428697853,0.001,4288.0,4287.9,43.3959519]
[1757428698441,0.001,4288.0,4287.9,39.1319519]
[1757428698687,0.001,4288.0,4287.9,43.3959519]
[1757428699755,0.001,4288.0,4287.9,38.6982519]
[1757428699952,0.001,4288.0,4287.9,42.9622519]
[1757428700301,0.001,4288.0,4287.9,43.3959519]
[1757428700600,0.001,4288.0,4287.9,42.9622519]
[1757428700747,0.001,4288.0,4287.9,43.3959519]
[1757428701691,0.001,4288.0,4287.9,43.68202436]
[1757428703095,0.025,4289.8,4288.8,2.33165454]
[1757428703096,1e-08,4288.9,4288.8,2.33165454]
[1757428703301,1e-08,4288.9,4288.8,41.87330742]
[1757428703596,1e-08,4288.9,4288.8,43.38189088]
[1757428704115,1e-08,4288.9,4288.8,45.70989088]
[1757428704284,1e-08,4289.9,4289.7,2.33116534]
[1757428704609,1e-08,4289.9,4289.8,41.63953864]
[1757428704810,1e-08,4289.9,4289.8,41.90632753]
[1757428705111,1e-08,4289.9,4289.8,45.47512753]
[1757428705295,1e-08,4289.9,4289.8,45.59112753]
[1757428705610,1e-08,4289.9,4289.8,39.79622753]
[1757428705814,1e-08,4289.9,4289.8,11.61622753]
[1757428706310,1e-08,4289.9,4289.8,45.47512753]
[1757428706672,1e-08,4289.9,4289.8,45.76119999]
[1757428707009,1e-08,4289.9,4289.8,41.21212753]
[1757428707171,1e-08,4289.9,4289.8,45.76219999]
[1757428707366,1e-08,4289.9,4289.8,41.49819999]
[1757428707591,1e-08,4289.9,4289.8,45.76119999]
[1757428708364,1e-08,4290.9,4290.5,2.33069686]
[1757428708703,1e-08,4290.9,4290.8,5.33056772]
[1757428708901,1e-08,4290.9,4290.8,39.88266772]
[1757428709104,1e-08,4290.9,4290.8,41.12446772]
[1757428709269,1e-08,4290.9,4290.8,41.41054018]
[1757428709628,1e-08,4290.9,4290.8,40.69076772]
[1757428709770,1e-08,4290.9,4290.8,42.95867569]
[1757428709965,1e-08,4290.9,4290.8,43.39237569]
[1757428710288,1e-08,4290.9,4290.8,43.67844815]
[1757428711372,1e-08,4290.9,4290.8,43.94955578]
[1757428711586,1e-08,4290.9,4290.8,43.67844815]
[1757428712101,1e-08,4290.9,4290.8,38.17464815]
[1757428712300,1e-08,4290.9,4290.8,42.15257569]
[1757428712624,1e-08,4290.9,4290.8,41.85947569]
[1757428712984,1e-08,4290.9,4290.8,37.89237569]
[1757428713321,1e-08,4290.9,4290.8,42.15337569]
[1757428713493,1e-08,4290.9,4290.8,35.56180797]
[1757428713699,1e-08,4290.9,4290.6,3.09315323]
[1757428713700,1.62920001,4290.9,4290.6,2.327]
[1757428713884,1.3299,4290.8,4290.7,2.355]
[1757428714085,1.6292,4290.8,4290.7,2.355]
[1757428714294,1e-08,4290.9,4290.7,2.355]
[1757428714295,1e-08,4290.9,4290.7,32.355]
[1757428714523,1e-08,4290.9,4290.8,30.0]
[1757428714683,1.6292,4290.8,4289.9,1.788]
[1757428714905,0.4693,4290.7,4290.0,34.45061931]
[1757428715100,1.1599,4290.8,4290.1,34.261]
[1757428715101,0.4693,4290.6,4290.1,34.261]
[1757428715412,0.2993,4290.2,4289.9,4.11905358]
[1757428715720,0.2993,4290.2,4290.0,4.26]
[1757428715721,0.4693,4290.1,4290.0,4.26]
[1757428716025,0.7686,4290.1,4290.0,7.26]
[1757428716196,0.2993,4290.1,4290.0,11.85672599]
[1757428716522,1e-08,4290.9,4290.1,33.0]
[1757428716742,0.46930001,4290.9,4290.3,5.44682074]
[1757428716945,1e-08,4290.9,4290.5,3.0]
[1757428717231,1e-08,4290.9,4290.0,2.14972366]
[1757428717232,0.46930001,4290.9,4290.8,0.116]
[1757428717388,1.62920001,4290.9,4290.8,17.376]
[1757428717587,1.62920001,4290.9,4290.8,37.376]
[1757428717787,1.62920001,4290.9,4290.8,7.376]
[1757428717788,0.76860001,4290.9,4290.8,7.376]
[1757428718523,0.76860001,4290.9,4290.8,40.62296772]
[1757428718524,1e-08,4290.9,4290.8,40.62296772]
[1757428718892,1e-08,4290.9,4290.8,38.2924]
[1757428719126,1.62920001,4290.9,4290.7,1.788]
[1757428719352,0.41530001,4290.9,4290.8,2.867]
[1757428719885,1.74520001,4290.9,4290.8,2.867]
[1757428720336,1.74520001,4290.9,4290.2,0.116]
[1757428720337,4.07571342,4290.9,4290.2,0.116]
[1757428720529,1.74520001,4290.9,4290.3,4.26]
[1757428720728,1.3299,4290.8,4290.4,3.0]
[1757428720929,1.3299,4290.7,4290.5,4.26]
[1757428721142,1.6292,4290.6,4290.5,7.26]
[1757428721865,0.792,4290.5,4290.0,1.788]
[1757428722085,2.44694557,4290.2,4290.1,4.26]
[1757428722288,1.7452,4290.2,4290.0,4.26]
[1757428722464,1.3299,4290.1,4290.0,4.26]
[1757428722817,1.6292,4290.1,4290.0,4.26]
[1757428722978,0.7686,4290.1,4290.0,7.26]
[1757428723179,0.7686,4290.1,4290.0,9.59100233]
[1757428723493,0.7686,4290.1,4290.0,7.26]
[1757428723865,1.6292,4290.1,4289.8,0.025]
[1757428724068,1.6292,4290.1,4289.9,4.26]
[1757428724069,0.8606,4290.0,4289.9,4.26]
[1757428724290,1.6292,4290.0,4289.9,7.26]
[1757428726523,1.6292,4290.0,4289.8,4.285]